bitfinex/quotes_ETHUSD_20220120
["timestamp","ask_amount","ask_price","bid_price","bid_amount"]
[1642722595146,1.26591349,3007.2,3006.4,0.0107632]
[1642722595346,3.52108042,3007.2,3006.4,0.0107632]
[1642722595693,1.26591349,3007.2,3006.4,0.0107632]
[1642722596183,22.885313,3007.2,3006.3,0.01133162]
[1642722596681,22.885313,3007.2,3006.1,3.03886137]
[1642722596682,0.03900621,3007.3,3006.2,0.01190004]
[1642722596882,1.55950405,3007.4,3006.2,0.01190004]
[1642722597086,0.87078089,3007.2,3006.2,0.01190004]
[1642722597682,0.1637,3007.2,3006.1,1.71386141]
[1642722597883,0.00511581,3007.1,3006.1,1.71386141]
[1642722598285,0.00454739,3007.0,3006.1,1.71386141]
[1642722598683,19.5337,3007.2,3006.1,1.71386141]
[1642722598684,0.00397896,3006.9,3006.1,2.54541141]
[1642722598886,19.5337,3007.2,3006.2,3.0]
[1642722599084,19.5337,3007.2,3006.2,3.00397896]
[1642722599283,0.00113685,3007.1,3006.2,3.00397896]
[1642722599937,0.96013819,3006.4,3006.2,0.00397896]
[1642722600139,0.00113685,3007.1,3006.2,0.00397896]
[1642722600140,2.38213685,3007.1,3006.2,0.00397896]
[1642722600343,19.75213685,3007.1,3006.2,0.00397896]
[1642722600740,19.75213685,3007.1,3006.0,0.00511581]
[1642722600940,19.75213685,3007.1,3005.8,1.66393316]
[1642722600941,0.1637,3007.0,3005.9,0.00568423]
[1642722601142,20.20184,3006.4,3005.9,0.00568423]
[1642722601342,0.381,3006.3,3005.9,0.00568423]
[1642722601540,19.751,3006.3,3005.9,0.00568423]
[1642722601738,19.751,3006.3,3005.3,0.132793]
[1642722601739,0.14355261,3005.4,3005.3,0.132793]
[1642722602138,0.14355261,3005.4,3005.3,0.13620354]
[1642722602541,1.1899491,3005.4,3005.3,0.13620354]
[1642722602939,0.14355261,3005.4,3005.3,0.13620354]
[1642722606189,0.14355261,3005.4,3005.1,0.017]
[1642722606190,19.37,3005.2,3005.1,0.017]
[1642722606391,19.751,3005.2,3005.1,0.017]
[1642722606589,19.751,3005.2,3005.1,0.01813685]
[1642722606791,21.65380068,3005.2,3005.1,0.01813685]
[1642722607236,21.81750068,3005.2,3005.1,0.01813685]
[1642722608236,21.65380068,3005.2,3005.1,0.01813685]
[1642722608436,1.3693,3005.2,3005.1,0.01813685]
[1642722608639,0.2055,3005.3,3005.1,0.01813685]
[1642722608839,0.1385,3005.3,3005.2,1.65292701]
[1642722609040,0.14355261,3005.4,3005.3,3.21271972]
[1642722609240,8.1456,3007.2,3005.4,4.53560562]
[1642722609241,0.1637,3007.0,3005.4,4.53560562]
[1642722609437,0.1637,3007.0,3005.5,0.95785513]
[1642722609643,0.1637,3007.5,3006.1,3.21265156]
[1642722609843,0.1637,3007.5,3006.2,1.64726259]
[1642722610043,0.00909477,3006.9,3005.4,1.33560562]
[1642722610247,0.00909477,3006.9,3005.5,1.64725907]
[1642722610444,0.1637,3007.0,3006.0,1.11452674]
[1642722610445,0.00852635,3006.8,3006.0,1.11452674]
[1642722610885,0.00795792,3006.7,3006.0,1.11452674]
[1642722611285,0.0073895,3006.6,3006.0,1.11452674]
[1642722611687,0.00682108,3006.5,3006.2,0.8315]
[1642722612088,0.00625265,3006.4,3006.3,1.64686755]
[1642722612287,0.00625265,3006.4,3006.3,4.84686755]
[1642722612288,5.265e-05,3006.4,3006.3,4.84686755]
[1642722612487,5.265e-05,3006.4,3006.3,4.85955773]
[1642722612689,0.03782396,3008.4,3006.9,0.83114]
[1642722612893,0.133,3008.7,3007.1,0.08358466]
[1642722612894,0.1637,3008.7,3007.1,0.08358466]
[1642722613091,0.1637,3008.7,3007.2,3.28953519]
[1642722613092,0.00403163,3008.2,3007.2,3.28953519]
[1642722613288,0.00403163,3008.2,3008.1,4.10854442]
[1642722613488,1.0,3009.0,3008.1,4.10854442]
[1642722613886,0.00801059,3008.9,3008.1,4.10854442]
[1642722614087,0.00801059,3008.9,3008.3,1.66166]
[1642722614443,1.0,3009.0,3008.1,5.77028442]
[1642722614444,0.93144286,3008.7,3008.1,5.77028442]
[1642722614649,0.93144286,3008.7,3008.1,1.50854442]
[1642722614850,0.00630532,3008.6,3007.6,2.49268]
[1642722615150,0.00630532,3008.6,3007.3,0.38208418]
[1642722615151,19.2757369,3008.5,3007.3,0.00108418]
[1642722615351,1.07979695,3008.4,3007.3,0.00108418]
[1642722615554,0.1637,3008.3,3006.9,0.00335788]
[1642722615752,0.1637,3008.3,3006.6,1.63255711]
[1642722615753,0.93069178,3007.0,3006.6,1.63255711]
[1642722615952,0.93069178,3007.0,3006.7,0.00449473]
[1642722616150,1.33298679,3007.6,3006.7,0.00449473]
[1642722616349,0.0361196,3007.7,3006.7,0.00449473]
[1642722616550,0.20368704,3008.0,3006.7,0.00449473]
[1642722616751,0.1637,3008.0,3006.7,0.00449473]
[1642722616953,0.00232636,3007.9,3006.7,0.00449473]
[1642722617152,0.00232636,3007.9,3006.9,1.01780636]
[1642722617350,0.00175793,3007.8,3007.0,2.30826188]
[1642722617552,0.00175793,3007.8,3007.2,0.83123]
[1642722617752,0.1637,3008.6,3007.7,3.13163924]
[1642722617952,0.1637,3008.6,3007.7,1.23163924]
[1642722617953,0.20365231,3008.6,3007.7,1.23163924]
[1642722618218,0.0057369,3008.5,3007.7,1.23163924]
[1642722618408,0.0057369,3008.5,3007.8,2.54601769]
[1642722618604,1.1637,3009.0,3007.8,2.54601769]
[1642722618605,0.00516847,3008.4,3008.0,0.83094]
[1642722618806,0.00516847,3008.4,3008.0,3.34393826]
[1642722619003,0.00460005,3008.3,3008.0,0.83094]
[1642722619402,1.0,3009.0,3008.1,4.0580517]
[1642722619403,0.00403163,3008.2,3008.1,4.0580517]
[1642722620005,0.00403163,3008.2,3008.1,4.8888875]
[1642722620812,0.00403163,3008.2,3008.1,4.8388875]
[1642722621208,1.0,3009.0,3008.2,3.2]
[1642722621407,1.0,3009.0,3008.4,1.66174]
[1642722621610,0.00397896,3008.9,3008.4,1.66174]
[1642722622037,1.054e-05,3008.8,3008.4,1.82805]
[1642722622239,0.1328,3010.4,3008.4,1.82805]
[1642722622240,0.1637,3010.6,3008.5,4.9864588]
[1642722622440,2.40211603,3010.7,3008.5,4.9864588]
[1642722622441,1.02097676,3010.5,3009.2,0.83051]
[1642722622639,0.00682108,3010.0,3009.3,0.07851598]
[1642722622838,0.00682108,3010.0,3009.2,1.16165968]
[1642722623039,0.00625266,3009.9,3009.0,0.84321866]
[1642722623443,1.11241896,3010.4,3008.8,0.381]
[1642722623444,1.33790797,3009.7,3009.1,1.66101]
[1642722623640,1.33790797,3009.7,3008.6,0.00113685]
[1642722623842,0.00454739,3009.6,3008.6,0.00113685]
[1642722624142,0.00454739,3009.6,3008.1,0.00397897]
[1642722624143,1.16902684,3008.7,3008.1,0.00397897]
[1642722624549,1.16902684,3008.7,3007.3,2.31525281]
[1642722624550,1.16902684,3008.7,3008.2,1.34709997]
[1642722624746,0.381,3009.4,3008.2,1.34709997]
[1642722624945,0.381,3009.4,3008.3,0.00284212]
[1642722625245,0.00284211,3009.3,3008.3,0.00284212]
[1642722625685,0.92184078,3008.6,3008.1,0.83094]
[1642722625889,0.92184078,3008.6,3008.1,0.83491897]
[1642722626093,0.92184078,3008.6,3008.2,0.00341054]
[1642722626693,21.92212975,3008.5,3007.8,0.00568424]
[1642722626892,21.92212975,3008.5,3006.8,1.66248]
[1642722626893,0.381,3008.4,3007.6,0.00682108]
[1642722627092,19.37,3008.2,3006.9,0.01080005]
[1642722627292,1.681,3008.4,3006.4,0.01296124]
[1642722627293,1.681,3008.4,3006.5,0.01307374]
[1642722627294,0.95563801,3007.5,3006.5,0.01307374]
[1642722627493,0.95563801,3007.5,3007.2,1.1289318]
[1642722627692,0.381,3008.1,3006.6,1.6626]
[1642722627891,0.381,3008.1,3007.3,0.00852635]
[1642722628092,0.381,3008.1,3007.1,0.83124]
[1642722628292,0.381,3008.1,3007.0,0.83126]
[1642722628293,0.1637,3008.4,3007.2,0.00909478]
[1642722628495,0.381,3008.8,3007.2,0.00909478]
[1642722628800,0.381,3008.8,3007.1,0.17896875]
[1642722628993,0.83047044,3008.6,3007.5,1.09347484]
[1642722629193,0.83047044,3008.6,3008.3,1.45579954]
[1642722629662,3.0253,3009.2,3008.4,0.0022737]
[1642722629863,1.19403098,3009.3,3008.4,0.0022737]
[1642722629864,0.00284211,3009.3,3008.4,0.0022737]
[1642722630062,0.00170527,3009.1,3008.4,0.0022737]
[1642722630264,1.02331451,3009.4,3008.4,0.0022737]
[1642722630265,0.00227369,3009.2,3008.4,0.0022737]
[1642722630465,0.00113684,3009.0,3008.4,0.0022737]
[1642722630664,0.9949,3008.9,3007.7,0.00625266]
[1642722630863,0.9949,3008.9,3007.2,0.00909478]
[1642722630864,22.77602926,3008.8,3007.2,0.00909478]
[1642722631065,22.77602926,3008.8,3007.5,0.00738951]
[1642722631066,0.381,3008.8,3007.5,0.00738951]
[1642722631265,0.381,3008.8,3008.0,1.2858355]
[1642722631664,0.381,3008.8,3008.1,0.00397897]
[1642722632166,0.92818758,3008.7,3008.1,0.00397897]
[1642722632568,0.0358268,3008.9,3008.1,0.00397897]
[1642722632766,0.00170527,3009.1,3008.1,0.00397897]
[1642722633069,0.00113684,3009.0,3008.1,0.00397897]
[1642722633491,1.00382171,3008.6,3008.1,0.00397897]
[1642722633691,0.00113684,3009.0,3008.1,0.00397897]
[1642722634599,1.05003503,3008.9,3008.1,0.00397897]
[1642722635099,2.27142907,3008.8,3008.1,0.00397897]
[1642722635302,20.36790851,3008.7,3008.1,0.00397897]
[1642722635500,20.36790851,3008.7,3007.0,1.2171]
[1642722635501,1.37890851,3008.6,3007.6,0.00682108]
[1642722635799,0.99790851,3008.5,3007.1,0.0096632]
[1642722635999,1.37890851,3008.4,3007.1,0.0096632]
[1642722636197,0.381,3008.4,3007.1,0.0096632]
[1642722636398,0.381,3008.4,3007.5,1.11226147]
[1642722636604,0.381,3008.4,3006.9,0.01080005]
[1642722636800,0.381,3008.4,3007.6,0.00682108]
[1642722637036,0.381,3008.4,3006.7,3.49139]
[1642722637037,1.25140029,3008.4,3006.8,0.01136847]
[1642722637239,0.1637,3008.3,3006.8,0.01136847]
[1642722637439,0.98637904,3008.2,3006.8,0.01136847]
[1642722637640,1.15216257,3007.2,3006.7,1.31117477]
[1642722637843,0.381,3007.9,3006.7,1.31117477]
[1642722638045,0.381,3007.9,3006.8,0.01136847]
[1642722638943,0.93316707,3007.7,3007.3,1.44857395]
[1642722639144,0.93316707,3007.7,3006.8,0.01136847]
[1642722639340,0.93316707,3007.7,3007.4,0.00795793]
[1642722639549,0.93316707,3007.7,3006.7,0.8432769]
[1642722639745,0.93316707,3007.7,3006.7,1.66267]
[1642722639945,0.03849393,3007.8,3006.8,0.01136847]
[1642722640144,0.381,3007.9,3006.8,0.01136847]
[1642722640346,0.381,3007.9,3007.3,1.32897461]
[1642722640819,19.22388041,3008.5,3007.4,0.00795793]
[1642722641107,4.2259,3008.7,3007.6,0.01260323]
[1642722641305,3.0789,3008.7,3007.6,0.01260323]
[1642722641501,3.0789,3008.7,3007.7,0.00625266]
[1642722641707,3.0789,3008.7,3007.8,1.41957463]
[1642722641903,1.5256803,3008.8,3007.8,1.41957463]
[1642722642104,1.13455445,3008.0,3007.9,0.00511581]
[1642722642501,1.13455445,3008.0,3007.2,0.00909478]
[1642722642702,1.13455445,3008.0,3006.2,0.07078815]
[1642722642703,1.13455445,3008.0,3006.8,0.01136847]
[1642722643003,1.23454511,3007.6,3006.6,1.38866902]
[1642722643203,1.23454511,3007.6,3006.5,0.01307374]
[1642722643204,0.92051924,3006.7,3006.5,0.01307374]
[1642722643407,2.75204825,3007.5,3006.0,0.99783]
[1642722643408,0.41932335,3007.5,3006.0,0.99783]
[1642722643605,19.37,3007.4,3006.1,1.73306288]
[1642722643901,19.37,3007.4,3006.1,1.74841032]
[1642722644105,19.37,3007.4,3006.2,1.73306288]
[1642722644544,1.09653301,3007.3,3006.3,0.01421059]
[1642722644747,1.09653301,3007.3,3006.4,1.73306288]
[1642722645146,1.09653301,3007.3,3006.5,0.01307374]
[1642722645547,0.049303,3008.0,3006.6,0.16631]
[1642722645748,0.381,3008.2,3007.3,1.30484236]
[1642722645947,0.381,3008.2,3006.9,0.83128]
[1642722646149,20.35614633,3008.1,3007.4,0.00795793]
[1642722646350,1.37950321,3008.0,3007.0,0.01023162]
[1642722646648,0.8316519,3007.6,3006.2,0.01477901]
[1642722646853,0.83166,3007.4,3006.2,0.01477901]
[1642722647049,0.86588515,3007.4,3006.3,1.31907211]
[1642722647250,0.41627346,3007.5,3006.3,1.31907211]
[1642722647449,0.381,3007.5,3006.4,0.01364217]
[1642722647850,1.03123833,3007.9,3006.4,0.01364217]
[1642722647851,1.03123833,3007.9,3006.5,1.7340203]
[1642722648294,1.03123833,3007.9,3006.7,0.83134]
[1642722648498,1.03123833,3007.9,3007.2,1.19835452]
[1642722648896,1.03123833,3007.9,3007.3,0.00852635]
[1642722649400,1.03123833,3007.9,3006.7,0.0119369]
[1642722649596,0.03685375,3008.0,3006.9,0.83131]
[1642722649804,3.38312792,3008.1,3006.7,0.0119369]
[1642722649805,1.65840495,3007.9,3006.7,0.0119369]
[1642722649997,1.54894529,3007.2,3007.0,0.01023162]
[1642722650197,1.54894529,3007.2,3006.2,2.40866298]
[1642722650198,2.38063529,3007.2,3006.3,0.01421059]
[1642722650797,0.84743484,3006.4,3006.3,0.01421059]
[1642722651197,0.84743484,3006.4,3006.0,0.01591586]
[1642722651799,0.84743484,3006.4,3005.3,0.01271972]
[1642722651800,0.84743484,3006.4,3005.9,1.42882149]
[1642722652076,2.51112654,3006.4,3005.9,1.42882149]
[1642722652259,2.54998632,3006.4,3006.0,0.01591586]
[1642722652858,2.54998632,3006.4,3005.4,0.0193264]
[1642722653059,2.54998632,3006.4,3005.5,1.74331581]
[1642722653060,1.71813462,3006.4,3005.5,1.74331581]
[1642722653361,1.67927484,3006.4,3005.6,0.01818955]
[1642722653660,1.67927484,3006.4,3005.7,1.74331581]
[1642722653661,2.90271761,3006.4,3005.7,1.74331581]
[1642722653860,2.90271761,3006.4,3005.6,0.01818955]
[1642722653861,2.07087761,3006.4,3005.8,1.74331581]
[1642722654067,0.84743484,3006.4,3005.8,0.01705271]
[1642722654264,0.84743484,3006.4,3005.9,0.01648428]
[1642722654466,0.84743484,3006.4,3005.5,0.01875798]
[1642722654869,0.381,3006.3,3005.5,0.01875798]
[1642722655065,0.381,3006.3,3005.4,0.0193264]
[1642722655266,0.381,3006.3,3005.5,1.73766774]
[1642722655465,0.381,3006.3,3005.4,0.0193264]
[1642722655689,0.381,3006.3,3005.6,0.01818955]
[1642722655889,0.381,3006.3,3005.4,0.0193264]
[1642722656097,19.751,3006.3,3005.4,0.0193264]
[1642722656292,0.86737675,3006.2,3005.4,0.0193264]
[1642722656493,0.8319394,3006.1,3005.4,0.0193264]
[1642722656694,0.86871861,3006.1,3005.4,0.0193264]
[1642722657493,0.832,3006.0,3005.4,0.0193264]
[1642722657711,1.6639534,3005.9,3005.4,0.0193264]
[1642722657898,4.44911873,3005.9,3005.4,0.0193264]
[1642722658097,4.48427706,3005.9,3005.4,0.0193264]
[1642722658296,20.84948224,3005.5,3005.4,0.0193264]
[1642722658499,19.37,3005.5,3005.4,0.0193264]
[1642722658700,0.41234754,3005.6,3005.4,0.0193264]
[1642722658701,19.78234754,3005.6,3005.4,0.0193264]
[1642722658901,2.07666774,3005.6,3005.4,0.0193264]
[1642722659550,3.47060132,3005.6,3005.4,0.0193264]
[1642722659750,0.83219,3005.5,3005.4,0.0193264]
[1642722659954,1.21319,3005.5,3005.4,0.0193264]
[1642722660152,0.381,3005.5,3005.4,0.0193264]
[1642722660755,22.551,3005.5,3005.4,0.0193264]
[1642722661150,24.1982328,3005.5,3005.4,0.0193264]
[1642722661753,20.051,3005.5,3005.4,0.0193264]
[1642722661951,0.381,3005.5,3005.4,0.0193264]
[1642722662157,0.03534931,3005.6,3005.4,0.0193264]
[1642722662351,0.13819997,3005.9,3005.4,0.0193264]
[1642722663392,0.97016367,3005.9,3005.4,0.0193264]
[1642722663594,0.381,3005.8,3005.4,0.0193264]
[1642722663792,19.37,3005.7,3005.4,0.0193264]
[1642722663993,0.381,3005.6,3005.4,0.0193264]
[1642722664199,19.37,3005.5,3005.4,0.0193264]
[1642722664398,21.28959339,3005.5,3005.4,0.0193264]
[1642722664598,22.95398339,3005.5,3005.4,0.0193264]
[1642722664998,22.95398339,3005.5,3005.4,0.01848843]
[1642722665303,3.2,3005.4,3005.3,0.01271972]
[1642722665501,22.951,3005.4,3005.3,0.01271972]
[1642722665697,23.951,3005.4,3005.3,0.01271972]
[1642722665899,24.95121485,3005.4,3005.3,0.01271972]
[1642722666098,23.95121485,3005.4,3005.3,0.01271972]
[1642722666304,20.91901485,3005.4,3005.3,0.01271972]
[1642722666700,21.75120485,3005.4,3005.3,0.01271972]
[1642722667144,21.15120485,3005.4,3005.3,0.01271972]
[1642722667346,22.15120485,3005.4,3005.3,0.01271972]
[1642722667744,22.28420485,3005.4,3005.3,0.01271972]
[1642722667947,22.28420485,3005.4,3005.1,0.017]
[1642722667948,3.05,3005.3,3005.1,0.017]
[1642722668145,21.49188076,3005.2,3005.1,0.017]
[1642722668351,21.79188076,3005.2,3005.1,0.017]
[1642722668549,19.451,3005.2,3005.1,0.017]
[1642722669348,19.6188,3005.2,3005.1,0.017]
[1642722670156,19.6188,3005.2,3004.0,0.33333348]
[1642722670157,3.2,3005.1,3004.0,0.33333348]
[1642722670357,21.03277503,3004.6,3004.0,0.33333348]
[1642722670561,22.52117503,3004.6,3004.0,0.33333348]
[1642722670803,18.77,3004.5,3004.0,0.33333348]
[1642722671004,0.381,3004.4,3004.0,0.33333348]
[1642722671206,18.77,3004.3,3004.1,0.00738951]
[1642722671504,0.381,3004.2,3004.1,0.00738951]
[1642722671703,19.151,3004.2,3004.1,0.00738951]
[1642722672504,19.3188,3004.2,3004.1,0.00738951]
[1642722672705,20.3116,3004.2,3004.1,0.00738951]
[1642722673603,1.5416,3004.2,3004.1,0.00738951]
[1642722673805,0.5488,3004.2,3004.1,0.00738951]
[1642722674657,1.3422,3004.2,3004.1,0.00738951]
[1642722675058,20.7122,3004.2,3004.1,0.00738951]
[1642722675457,3.2,3004.1,3003.0,0.49672865]
[1642722675666,19.751,3004.0,3003.0,0.49672865]
[1642722675856,2.24110101,3003.7,3003.6,0.00284211]
[1642722676055,2.62210101,3003.7,3003.6,0.00284211]
[1642722676257,21.99210101,3003.7,3003.6,0.00284211]
[1642722676460,22.97129846,3003.7,3003.6,0.00284211]
[1642722677257,23.27129846,3003.7,3003.6,0.00284211]
[1642722679102,23.43909846,3003.7,3003.6,0.00284211]
[1642722680303,23.43909846,3003.7,3003.5,0.97106559]
[1642722680909,25.10469846,3003.7,3003.5,0.97106559]
[1642722681309,2.66070745,3003.7,3003.5,0.97106559]
[1642722681508,1.52799745,3003.7,3003.5,0.97106559]
[1642722682048,1.82799745,3003.7,3003.5,0.97106559]
[1642722682245,1.52799745,3003.7,3003.5,0.97106559]
[1642722682746,1.82799745,3003.7,3003.5,0.97106559]
[1642722682946,2.24909745,3003.7,3003.5,0.97106559]
[1642722683148,2.54909745,3003.7,3003.5,0.97106559]
[1642722683746,21.91909745,3003.7,3003.5,0.97106559]
[1642722684350,2.24909745,3003.7,3003.5,0.97106559]
[1642722684953,1.2699,3003.7,3003.5,0.97106559]
[1642722685253,0.1678,3003.7,3003.5,0.97106559]
[1642722685692,0.1678,3004.0,3003.5,0.87106559]
[1642722686393,0.85944509,3003.9,3003.5,0.87106559]
[1642722686595,19.37,3003.8,3003.5,0.87106559]
[1642722686795,19.75213684,3003.8,3003.5,0.87106559]
[1642722687193,20.43963684,3003.8,3003.5,0.35293236]
[1642722687496,20.57640473,3003.7,3003.5,0.35293236]
[1642722687693,2.081,3003.6,3003.5,0.35293236]
[1642722689101,2.081,3003.6,3003.5,0.3177021]
[1642722689102,3.081,3003.6,3003.5,0.3177021]
[1642722689299,6.581,3003.6,3003.5,0.01822348]
[1642722689555,0.01738002,3003.4,3003.0,0.49672865]
[1642722689761,19.37,3003.2,3003.0,0.49672865]
[1642722689957,19.37,3003.2,3003.1,0.00284212]
[1642722690157,20.77845176,3003.2,3003.0,0.27427587]
[1642722690362,20.77845176,3003.2,3002.6,1.88810355]
[1642722690363,1.40845176,3003.2,3002.6,1.88810355]
[1642722690557,0.01208605,3003.1,3002.6,1.88810355]
[1642722690862,0.39308605,3003.1,3002.6,1.79037724]
[1642722691156,0.39308605,3003.1,3002.6,1.59037724]
[1642722691157,0.381,3003.1,3002.6,1.59037724]
[1642722691363,0.16950527,3003.0,3002.6,1.59037724]
[1642722691663,0.01738002,3003.4,3002.7,0.01288703]
[1642722691858,0.01738002,3003.4,3002.1,4.13625485]
[1642722692060,0.00170527,3003.3,3002.1,4.13625485]
[1642722692258,0.00170527,3003.3,3002.8,0.02052795]
[1642722692457,0.01738002,3003.4,3002.8,0.02052795]
[1642722692458,0.00284211,3003.2,3002.8,0.02052795]
[1642722692660,0.381,3003.1,3002.8,0.02052795]
[1642722692860,0.38327369,3003.1,3002.8,0.02052795]
[1642722693060,0.00170527,3003.0,3002.8,0.02052795]
[1642722693309,20.07554578,3003.3,3001.7,0.01245767]
[1642722693508,20.07554578,3003.3,3001.9,0.95522488]
[1642722693705,20.07554578,3003.3,3002.5,0.01283506]
[1642722693706,0.00227369,3002.9,3002.5,0.01283506]
[1642722694112,0.01738002,3003.4,3002.5,0.01283506]
[1642722694113,0.01738002,3003.4,3002.6,3.2]
[1642722694314,0.01738002,3003.4,3002.6,3.20170527]
[1642722694514,8.002e-05,3003.4,3003.3,2.06245436]
[1642722694713,8.002e-05,3003.4,3003.0,0.01232297]
[1642722694916,0.00292214,3003.4,3002.8,0.83245]
[1642722695714,0.06386452,3003.8,3003.4,3.2]
[1642722695921,4.89523089,3005.2,3003.4,3.2]
[1642722695922,1.84001713,3005.4,3003.7,0.01237838]
[1642722696119,3.22609579,3006.1,3003.8,0.381]
[1642722696120,0.13819997,3005.7,3003.8,0.381]
[1642722696321,1.14044414,3005.6,3005.2,0.01278951]
[1642722696524,1.14044414,3005.6,3003.8,0.381]
[1642722696525,0.1331,3006.3,3004.3,0.54731]
[1642722696526,0.01193689,3005.5,3004.3,0.54731]
[1642722696817,0.1331,3006.3,3004.3,0.54731]
[1642722696818,2.01136847,3005.4,3005.1,1.21876276]
[1642722697052,1.56448089,3006.4,3005.3,3.21202378]
[1642722697053,1.82152636,3006.2,3005.3,3.21202378]
[1642722697252,0.1331,3006.4,3006.0,0.01298537]
[1642722697253,3.39627342,3006.1,3006.0,0.01298537]
[1642722697450,3.39627342,3006.1,3004.3,1.73491635]
[1642722697451,0.01249173,3005.8,3005.2,0.00113685]
[1642722697650,1.14627342,3005.7,3005.2,0.00113685]
[1642722697855,3.21261506,3005.3,3005.2,0.00113685]
[1642722698049,23.72888848,3005.3,3004.2,0.00682108]
[1642722698249,1.13752898,3005.2,3004.2,0.00682108]
[1642722698448,1.13752898,3005.2,3004.2,1.12650772]
[1642722698850,1.13752898,3005.2,3004.3,0.00625266]
[1642722699249,1.13752898,3005.2,3004.3,0.83838266]
[1642722699450,0.83331065,3005.6,3004.3,0.00625266]
[1642722699654,1.3014012,3005.4,3004.4,0.00568424]
[1642722699854,1.3014012,3005.4,3004.3,0.00625266]
[1642722699855,1.17037207,3005.3,3004.3,0.00625266]
[1642722700259,1.17037207,3005.3,3003.7,1.1601]
[1642722700260,1.99374734,3004.3,3003.7,1.1601]
[1642722700458,1.99374734,3004.3,3003.8,0.00284212]
[1642722701106,1.99374734,3004.3,3004.0,1.43743358]
[1642722701307,1.99374734,3004.3,3003.8,0.00284212]
[1642722701516,1.99374734,3004.3,3004.1,0.00113685]
[1642722701718,19.37,3004.2,3004.1,0.00113685]
[1642722701911,19.37,3004.2,3002.8,1.2327]
[1642722701912,0.01783631,3004.1,3003.6,0.00397896]
[1642722702109,0.01783631,3004.1,3002.9,0.00795793]
[1642722702309,1.14241277,3003.1,3003.0,1.16768323]
[1642722702511,1.14241277,3003.1,3002.7,1.2196]
[1642722702512,1.14241277,3003.1,3002.8,0.00852635]
[1642722702708,1.14241277,3003.1,3003.0,0.0073895]
[1642722702910,1.14241277,3003.1,3002.8,0.00852635]
[1642722703108,1.14241277,3003.1,3002.5,0.01023162]
[1642722703408,1.14241277,3003.1,3002.5,1.53243597]
[1642722703708,1.14241277,3003.1,3002.6,0.0096632]
[1642722703907,0.1452896,3004.0,3003.0,1.43277717]
[1642722704109,3.6306811,3004.7,3003.0,1.43277717]
[1642722704110,2.12694734,3004.3,3003.0,1.43277717]
[1642722704313,1.99374734,3004.3,3003.1,0.01965319]
[1642722704557,2.29374734,3004.3,3003.1,0.01965319]
[1642722704757,2.29374734,3004.3,3003.2,1.67099266]
[1642722704758,1.99374734,3004.3,3003.2,1.67099266]
[1642722705054,1.99374734,3004.3,3003.8,1.52186409]
[1642722705055,0.99803932,3004.0,3003.8,1.52186409]
[1642722705255,1.99374734,3004.3,3003.8,1.52186409]
[1642722705457,1.99374734,3004.3,3003.9,0.00227369]
[1642722705858,2.82621184,3004.3,3003.9,0.00227369]
[1642722706156,2.82621184,3004.3,3003.2,0.83242]
[1642722706157,1.99374734,3004.3,3003.3,0.00568423]
[1642722706557,0.98194746,3003.9,3003.8,1.17698602]
[1642722706757,1.99374734,3004.3,3003.8,1.17698602]
[1642722707157,1.99374734,3004.3,3003.9,0.00227369]
[1642722707958,1.99374734,3004.3,3003.1,0.01283211]
[1642722707959,1.99374734,3004.3,3003.2,0.00625266]
[1642722708605,1.99374734,3004.3,3004.2,1.49377667]
[1642722709614,1.99374734,3004.3,3003.8,0.001]
[1642722710007,1.99374734,3004.3,3003.9,0.00227369]
[1642722710610,3.0079616,3004.3,3004.1,1.24497612]
[1642722711108,1.99374734,3004.3,3004.1,1.24497612]
[1642722711306,1.99374734,3004.3,3004.1,1.09497612]
[1642722713470,1.99374734,3004.3,3004.1,1.09597612]
[1642722715892,1.99374734,3004.3,3004.1,1.92812612]
[1642722716294,1.99374734,3004.3,3004.1,1.09597612]
[1642722716895,1.99374734,3004.3,3004.1,0.001]
[1642722717498,1.1032425,3004.2,3004.1,0.001]
[1642722717698,2.0,3004.2,3004.1,0.001]
[1642722717900,2.0,3004.2,3004.1,0.00213685]
[1642722718600,1.99374734,3004.3,3004.1,0.00213685]
[1642722718803,2.68419306,3004.2,3004.1,0.00213685]
[1642722719003,1.55,3004.2,3004.1,0.00213685]
[1642722719202,4.57361634,3004.2,3004.1,0.00213685]
[1642722719449,0.00036388,3003.8,3003.1,0.1331]
[1642722719657,0.00036388,3003.8,3002.7,0.1331]
[1642722719857,0.00036388,3003.8,3003.2,0.00511581]
[1642722720053,20.81077016,3003.8,3003.2,0.00511581]
[1642722720251,19.37,3003.6,3002.9,0.00682108]
[1642722720453,19.37,3003.6,3002.3,0.01023162]
[1642722720454,0.88467708,3003.3,3002.3,0.01023162]
[1642722720654,0.88467708,3003.3,3002.9,1.53220902]
[1642722720852,0.3,3003.6,3002.9,1.53220902]
[1642722721054,0.3,3003.6,3003.0,0.00625265]
[1642722721252,0.3,3003.6,3002.9,1.53220902]
[1642722721253,1.21640785,3003.5,3002.9,1.48846167]
[1642722721453,0.00284211,3003.5,3002.1,1.67760486]
[1642722721657,1.88548375,3003.4,3002.2,1.60782476]
[1642722721854,1.88548375,3003.4,3002.3,3.36313834]
[1642722721855,0.8345105,3003.2,3002.3,3.36313834]
[1642722722055,1.88548375,3003.4,3002.4,1.47462476]
[1642722722056,0.00170527,3003.3,3002.4,1.47462476]
[1642722722256,0.00170527,3003.3,3002.4,1.4780353]
[1642722722459,0.00113684,3003.2,3003.0,1.24367762]
[1642722722655,0.00113684,3003.2,3002.5,0.13594212]
[1642722722859,0.00113684,3003.2,3002.5,0.00284212]
[1642722722860,19.37,3003.2,3002.5,0.00284212]
[1642722723054,1.88321006,3003.1,3002.6,0.0022737]
[1642722723327,1.88321006,3003.1,3002.3,0.00397897]
[1642722723528,19.37,3003.0,3002.3,0.00397897]
[1642722723729,1.88321006,3003.1,3002.3,1.19338699]
[1642722723932,1.88321006,3003.1,3002.3,1.18940802]
[1642722724131,1.88321006,3003.1,3002.4,0.00341054]
[1642722724527,1.88321006,3003.1,3002.4,1.47795789]
[1642722724729,2.18321006,3003.1,3002.4,0.00341054]
[1642722724928,2.18321006,3003.1,3002.5,0.00284212]
[1642722725132,2.18321006,3003.1,3002.4,0.00341054]
[1642722725329,2.18321006,3003.1,3002.4,1.47700558]
[1642722725330,1.88321006,3003.1,3002.4,1.47700558]
[1642722725530,0.00170527,3003.3,3002.4,1.47700558]
[1642722725731,0.00170527,3003.3,3002.3,1.21940784]
[1642722726031,0.00397896,3003.2,3002.5,0.01217179]
[1642722726229,0.00397896,3003.2,3003.1,1.12506035]
[1642722726428,0.00036388,3003.8,3002.5,0.01217179]
[1642722726630,0.00036388,3003.8,3002.0,0.02219927]
[1642722726631,0.01250685,3003.4,3002.0,0.02219927]